[Event "*** Titled Tuesday Blitz"]
[Site "Chess.com"]
[Date "2018.12.04"]
[Round "7"]
[White "Gabrielian_Artur"]
[Black "Hrant_ChessMood"]
[Result "0-1"]
[WhiteElo "2716"]
[BlackElo "2937"]
[TimeControl "180+2"]
[EndTime "14:39:14 PST"]
[Termination "Hrant_ChessMood won on time"]

1. e4 {[%clk 0:03:01.9]} 1... c5 {[%clk 0:02:58.2]} 2. Nc3 {[%clk 0:03:02.4]}
2... g6 {[%clk 0:02:54.6]} 3. Nf3 {[%clk 0:03:01.7]} 3... Bg7 {[%clk 0:02:54.6]}
4. d4 {[%clk 0:03:02.2]} 4... cxd4 {[%clk 0:02:56.5]} 5. Nxd4 {[%clk 0:03:03.3]}
5... Nc6 {[%clk 0:02:58.4]} 6. Be3 {[%clk 0:03:04.1]} 6... Nf6 {[%clk
0:02:58.7]} 7. Bc4 {[%clk 0:03:05]} 7... O-O {[%clk 0:02:59.1]} 8. Bb3 {[%clk
0:03:05.7]} 8... Re8 {[%clk 0:03:00.2]} 9. Nxc6 {[%clk 0:03:03.7]} 9... dxc6
{[%clk 0:02:55]} 10. Qxd8 {[%clk 0:03:04.2]} 10... Rxd8 {[%clk 0:02:55.8]} 11.
f3 {[%clk 0:03:05.7]} 11... Nd7 {[%clk 0:02:45.9]} 12. O-O-O {[%clk 0:03:04.3]}
12... Re8 {[%clk 0:02:47.1]} 13. Rd2 {[%clk 0:02:59.6]} 13... Nf8 {[%clk
0:02:46.2]} 14. Rhd1 {[%clk 0:02:55.8]} 14... Be6 {[%clk 0:02:47.1]} 15. Ne2
{[%clk 0:02:54.2]} 15... a5 {[%clk 0:02:33.8]} 16. Kb1 {[%clk 0:02:52.5]} 16...
h5 {[%clk 0:02:24]} 17. Nd4 {[%clk 0:02:37.8]} 17... Bxd4 {[%clk 0:02:13.8]} 18.
Bxd4 {[%clk 0:02:37.3]} 18... b5 {[%clk 0:02:12.1]} 19. Be3 {[%clk 0:02:32.9]}
19... a4 {[%clk 0:02:08.1]} 20. Bxe6 {[%clk 0:02:33.3]} 20... Nxe6 {[%clk
0:02:10]} 21. a3 {[%clk 0:02:34]} 21... f6 {[%clk 0:02:10.8]} 22. c4 {[%clk
0:02:16.6]} 22... Kf7 {[%clk 0:02:02.5]} 23. cxb5 {[%clk 0:02:16.8]} 23... cxb5
{[%clk 0:02:04.4]} 24. Rd5 {[%clk 0:02:17.2]} 24... Reb8 {[%clk 0:02:04.4]} 25.
Bd2 {[%clk 0:02:06.3]} 25... h4 {[%clk 0:02:01.1]} 26. Bb4 {[%clk 0:02:04.9]}
26... Rb7 {[%clk 0:01:54.3]} 27. g3 {[%clk 0:01:51.5]} 27... Ng5 {[%clk
0:01:41.8]} 28. R1d3 {[%clk 0:01:46.1]} 28... hxg3 {[%clk 0:01:33.1]} 29. hxg3
{[%clk 0:01:46.7]} 29... Rc8 {[%clk 0:01:34.4]} 30. Rd7 {[%clk 0:01:26.4]} 30...
Rcc7 {[%clk 0:01:33.8]} 31. Rd8 {[%clk 0:01:24.5]} 31... Ke6 {[%clk 0:01:28.7]}
32. Ra8 {[%clk 0:01:20]} 32... Rd7 {[%clk 0:01:29]} 33. Rc3 {[%clk 0:01:14.1]}
33... Rbc7 {[%clk 0:01:30.1]} 34. Rb8 {[%clk 0:01:09.1]} 34... Nxf3 {[%clk
0:01:17]} 35. Rxc7 {[%clk 0:00:39.2]} 35... Rxc7 {[%clk 0:01:15.5]} 36. Rxb5
{[%clk 0:00:40.3]} 36... Ra7 {[%clk 0:00:54]} 37. Bc3 {[%clk 0:00:40.3]} 37...
Ng5 {[%clk 0:00:51.9]} 38. Rb6+ {[%clk 0:00:38]} 38... Kf7 {[%clk 0:00:52.6]}
39. e5 {[%clk 0:00:39.3]} 39... f5 {[%clk 0:00:50.6]} 40. Ka2 {[%clk 0:00:21.3]}
40... Ne6 {[%clk 0:00:51.4]} 41. Bb4 {[%clk 0:00:19.2]} 41... g5 {[%clk
0:00:48.9]} 42. b3 {[%clk 0:00:20.4]} 42... axb3+ {[%clk 0:00:47.3]} 43. Kxb3
{[%clk 0:00:21.1]} 43... g4 {[%clk 0:00:46]} 44. Bd2 {[%clk 0:00:18.4]} 44...
Nc5+ {[%clk 0:00:44.4]} 45. Kc4 {[%clk 0:00:15.5]} 45... Ne4 {[%clk 0:00:45.2]}
46. Bf4 {[%clk 0:00:15.6]} 46... Rxa3 {[%clk 0:00:42.9]} 47. Rb7 {[%clk
0:00:13.4]} 47... Ra6 {[%clk 0:00:26.8]} 48. Kd5 {[%clk 0:00:11.6]} 48... Ra5+
{[%clk 0:00:23.3]} 49. Kd4 {[%clk 0:00:10.3]} 49... Nc5 {[%clk 0:00:24.4]} 50.
Rb8 {[%clk 0:00:07.8]} 50... Ne6+ {[%clk 0:00:25.4]} 51. Ke3 {[%clk 0:00:08.2]}
51... Ra3+ {[%clk 0:00:25.1]} 52. Ke2 {[%clk 0:00:08.2]} 52... Ra4 {[%clk
0:00:20.9]} 53. Be3 {[%clk 0:00:02.5]} 53... Re4 {[%clk 0:00:21.3]} 0-1

[Event "*** Titled Tuesday Blitz"]
[Site "Chess.com"]
[Date "2018.12.04"]
[Round "7"]
[White "VincentBlom"]
[Black "Shahinyan_ChessMood"]
[Result "1-0"]
[WhiteElo "2519"]
[BlackElo "2644"]
[TimeControl "180+2"]
[EndTime "14:39:15 PST"]
[Termination "VincentBlom won by resignation"]

1. d4 {[%clk 0:03:01.9]} 1... e6 {[%clk 0:02:58.5]} 2. g3 {[%clk 0:02:55.3]}
2... f5 {[%clk 0:02:59.4]} 3. Bg2 {[%clk 0:02:56.5]} 3... Nf6 {[%clk 0:03:01.3]}
4. Nh3 {[%clk 0:02:56.4]} 4... d5 {[%clk 0:03:03.2]} 5. Nf4 {[%clk 0:02:55.2]}
5... c6 {[%clk 0:03:03.8]} 6. Nd2 {[%clk 0:02:55.9]} 6... Bd6 {[%clk 0:03:04.8]}
7. Nf3 {[%clk 0:02:55.6]} 7... O-O {[%clk 0:03:05.8]} 8. O-O {[%clk 0:02:56.6]}
8... Qe7 {[%clk 0:03:04.7]} 9. Nd3 {[%clk 0:02:57.9]} 9... Nbd7 {[%clk
0:03:05.1]} 10. Bf4 {[%clk 0:02:59.4]} 10... b6 {[%clk 0:03:04]} 11. Nde5 {[%clk
0:02:57.6]} 11... Bb7 {[%clk 0:03:04]} 12. a4 {[%clk 0:02:52]} 12... a5 {[%clk
0:03:00.1]} 13. Nxd7 {[%clk 0:02:52.4]} 13... Nxd7 {[%clk 0:02:54]} 14. Bxd6
{[%clk 0:02:45.9]} 14... Qxd6 {[%clk 0:02:55.9]} 15. e3 {[%clk 0:02:44.2]} 15...
Ba6 {[%clk 0:02:54]} 16. Re1 {[%clk 0:02:45.5]} 16... c5 {[%clk 0:02:55.1]} 17.
c3 {[%clk 0:02:43.8]} 17... Rad8 {[%clk 0:02:51.1]} 18. Qd2 {[%clk 0:02:41.5]}
18... h6 {[%clk 0:02:37.3]} 19. Reb1 {[%clk 0:02:40.3]} 19... e5 {[%clk
0:02:20.1]} 20. b4 {[%clk 0:02:19.9]} 20... axb4 {[%clk 0:02:15.4]} 21. cxb4
{[%clk 0:02:17.3]} 21... cxd4 {[%clk 0:02:12.2]} 22. exd4 {[%clk 0:02:04.6]}
22... e4 {[%clk 0:02:12.4]} 23. Ne1 {[%clk 0:01:58.4]} 23... Bc4 {[%clk
0:02:08.6]} 24. Qf4 {[%clk 0:01:50.7]} 24... Qf6 {[%clk 0:01:33.3]} 25. Nc2
{[%clk 0:01:36.6]} 25... g5 {[%clk 0:01:32.9]} 26. Qd2 {[%clk 0:01:35.6]} 26...
f4 {[%clk 0:01:32.1]} 27. a5 {[%clk 0:01:32.8]} 27... b5 {[%clk 0:01:26.8]} 28.
a6 {[%clk 0:01:31]} 28... Ra8 {[%clk 0:01:21.8]} 29. a7 {[%clk 0:01:31.9]} 29...
Rf7 {[%clk 0:01:11.3]} 30. Ra5 {[%clk 0:01:23]} 30... Nf8 {[%clk 0:01:01.8]} 31.
Na3 {[%clk 0:01:19.4]} 31... Rfxa7 {[%clk 0:00:41.1]} 32. Nxc4 {[%clk
0:01:05.4]} 32... bxc4 {[%clk 0:00:23]} 33. Rxd5 {[%clk 0:01:06]} 33... f3
{[%clk 0:00:24.4]} 34. Bf1 {[%clk 0:01:03.5]} 34... Ra1 {[%clk 0:00:25.1]} 35.
Qc1 {[%clk 0:00:50.4]} 35... Rxb1 {[%clk 0:00:20.6]} 36. Qxb1 {[%clk 0:00:52.3]}
36... e3 {[%clk 0:00:21.4]} 37. Bxc4 {[%clk 0:00:51.9]} 37... exf2+ {[%clk
0:00:21.5]} 38. Kxf2 {[%clk 0:00:51]} 38... Kh8 {[%clk 0:00:22.9]} 39. Qf5
{[%clk 0:00:26.8]} 39... Qc6 {[%clk 0:00:12.7]} 40. Qe5+ {[%clk 0:00:17.4]}
40... Kh7 {[%clk 0:00:12.4]} 41. Qe7+ {[%clk 0:00:18.3]} 41... Kh8 {[%clk
0:00:13]} 42. Rd6 {[%clk 0:00:14.9]} 42... Qxc4 {[%clk 0:00:11.2]} 43. Rxh6+
{[%clk 0:00:06.7]} 43... Kg8 {[%clk 0:00:12.5]} 44. Qxg5+ {[%clk 0:00:07.8]}
44... Kf7 {[%clk 0:00:14]} 45. Rf6+ {[%clk 0:00:05]} 45... Ke8 {[%clk
0:00:15.2]} 46. Qe5+ {[%clk 0:00:05.9]} 46... Kd7 {[%clk 0:00:11.9]} 47. Qd6+
{[%clk 0:00:06.9]} 47... Kc8 {[%clk 0:00:11.1]} 48. Rxf8+ {[%clk 0:00:08.2]}
48... Kb7 {[%clk 0:00:12.6]} 49. Qe7+ {[%clk 0:00:08.4]} 49... Kb6 {[%clk
0:00:12.7]} 50. Qc5+ {[%clk 0:00:07.2]} 50... Qxc5 {[%clk 0:00:10.8]} 51. dxc5+
{[%clk 0:00:08.4]} 51... Kb5 {[%clk 0:00:12.4]} 52. Rxa8 {[%clk 0:00:09.9]} 1-0

[Event "*** Titled Tuesday Blitz"]
[Site "Chess.com"]
[Date "2018.12.04"]
[Round "7"]
[White "GreatDamnedRedSpot"]
[Black "alishersuleymenov"]
[Result "0-1"]
[WhiteElo "2324"]
[BlackElo "2481"]
[TimeControl "180+2"]
[EndTime "14:39:25 PST"]
[Termination "alishersuleymenov won by resignation"]

1. e4 {[%clk 0:03:01.9]} 1... c5 {[%clk 0:03:00.2]} 2. Nf3 {[%clk 0:03:02.6]}
2... Nc6 {[%clk 0:03:00.9]} 3. Bb5 {[%clk 0:03:02.9]} 3... d6 {[%clk 0:03:02.3]}
4. d4 {[%clk 0:03:03.1]} 4... cxd4 {[%clk 0:03:01.9]} 5. Qxd4 {[%clk 0:03:04.6]}
5... a6 {[%clk 0:03:00.1]} 6. Bxc6+ {[%clk 0:03:05.6]} 6... bxc6 {[%clk
0:03:02]} 7. c4 {[%clk 0:03:06.5]} 7... e5 {[%clk 0:03:00.5]} 8. Qd3 {[%clk
0:03:07.2]} 8... Nf6 {[%clk 0:03:02]} 9. Nc3 {[%clk 0:03:08.3]} 9... c5 {[%clk
0:02:51.6]} 10. Bg5 {[%clk 0:03:01.8]} 10... Be7 {[%clk 0:02:50]} 11. Nd2 {[%clk
0:03:02.7]} 11... O-O {[%clk 0:02:47.7]} 12. Nf1 {[%clk 0:03:03.7]} 12... Rb8
{[%clk 0:02:28.2]} 13. b3 {[%clk 0:03:01.3]} 13... Nh5 {[%clk 0:02:00.4]} 14.
Bd2 {[%clk 0:02:35.4]} 14... Nf4 {[%clk 0:01:58.8]} 15. Bxf4 {[%clk 0:02:01.1]}
15... exf4 {[%clk 0:02:00.7]} 16. Nd5 {[%clk 0:02:02.4]} 16... f5 {[%clk
0:01:15.5]} 17. Nd2 {[%clk 0:01:58.8]} 17... Bf6 {[%clk 0:00:49.1]} 18. Nxf6+
{[%clk 0:01:53.6]} 18... Qxf6 {[%clk 0:00:51]} 19. O-O {[%clk 0:01:54.4]} 19...
Bb7 {[%clk 0:00:51.2]} 20. Rad1 {[%clk 0:01:20.9]} 20... f3 {[%clk 0:00:41.3]}
21. Qxf3 {[%clk 0:00:52.4]} 21... fxe4 {[%clk 0:00:41.5]} 22. Nxe4 {[%clk
0:00:18.8]} 22... Qxf3 {[%clk 0:00:38.4]} 23. gxf3 {[%clk 0:00:20.7]} 23... Rxf3
{[%clk 0:00:39.9]} 24. Rfe1 {[%clk 0:00:19.2]} 24... Rbf8 {[%clk 0:00:40.1]} 25.
Rd2 {[%clk 0:00:19.1]} 25... Re8 {[%clk 0:00:32.4]} 26. Rde2 {[%clk 0:00:19.7]}
26... Re6 {[%clk 0:00:33.7]} 27. Kg2 {[%clk 0:00:18.1]} 27... Rf4 {[%clk
0:00:33.9]} 28. f3 {[%clk 0:00:19.4]} 28... Rg6+ {[%clk 0:00:34.5]} 29. Kf2
{[%clk 0:00:19]} 29... Rh6 {[%clk 0:00:35.8]} 30. Kg2 {[%clk 0:00:18.8]} 30...
Rf5 {[%clk 0:00:34.9]} 31. Re3 {[%clk 0:00:18.9]} 31... Rfh5 {[%clk 0:00:36.1]}
32. Rh1 {[%clk 0:00:20]} 32... Rg6+ {[%clk 0:00:36.8]} 33. Ng3 {[%clk
0:00:21.2]} 33... Rh4 {[%clk 0:00:33.3]} 34. Kf2 {[%clk 0:00:21.6]} 34... h6
{[%clk 0:00:33.1]} 35. Rd3 {[%clk 0:00:21.7]} 35... Rf4 {[%clk 0:00:33.7]} 36.
Re1 {[%clk 0:00:21.3]} 36... Kh7 {[%clk 0:00:34.5]} 37. Ree3 {[%clk 0:00:21.4]}
37... Rf7 {[%clk 0:00:33.2]} 38. Rd2 {[%clk 0:00:20]} 38... Rgf6 {[%clk
0:00:34.5]} 39. Ne4 {[%clk 0:00:18.5]} 39... Bxe4 {[%clk 0:00:34.9]} 40. Rxe4
{[%clk 0:00:18.8]} 40... Rxf3+ {[%clk 0:00:36.8]} 41. Ke2 {[%clk 0:00:18.9]}
41... Rf2+ {[%clk 0:00:37]} 42. Kd3 {[%clk 0:00:20.4]} 42... Rxd2+ {[%clk
0:00:38.4]} 43. Kxd2 {[%clk 0:00:21]} 43... Rf2+ {[%clk 0:00:40.3]} 44. Kc3
{[%clk 0:00:22.3]} 44... Rxa2 {[%clk 0:00:40.8]} 45. Re6 {[%clk 0:00:23.6]}
45... Rxh2 {[%clk 0:00:36.8]} 46. Rxd6 {[%clk 0:00:25.1]} 46... Rh3+ {[%clk
0:00:38.7]} 47. Kc2 {[%clk 0:00:25.9]} 47... h5 {[%clk 0:00:34.1]} 48. Rxa6
{[%clk 0:00:26.6]} 48... h4 {[%clk 0:00:36]} 49. Ra5 {[%clk 0:00:28.1]} 49...
Rg3 {[%clk 0:00:32.8]} 50. Rxc5 {[%clk 0:00:29.4]} 50... Kh6 {[%clk 0:00:34.4]}
51. Rc8 {[%clk 0:00:29.2]} 51... Kh7 {[%clk 0:00:25.9]} 52. b4 {[%clk
0:00:30.3]} 52... h3 {[%clk 0:00:25.9]} 53. Rc5 {[%clk 0:00:29.2]} 53... Rg6
{[%clk 0:00:26.4]} 54. Rh5+ {[%clk 0:00:14.7]} 54... Rh6 {[%clk 0:00:27]} 55.
Rxh3 {[%clk 0:00:16.3]} 55... Rxh3 {[%clk 0:00:25.7]} 56. b5 {[%clk 0:00:18.2]}
56... Kg6 {[%clk 0:00:21.7]} 57. b6 {[%clk 0:00:17.8]} 57... Kf7 {[%clk
0:00:22.9]} 58. b7 {[%clk 0:00:16.4]} 58... Rh8 {[%clk 0:00:24.4]} 59. c5 {[%clk
0:00:17.6]} 59... Ke7 {[%clk 0:00:26]} 60. Kc3 {[%clk 0:00:18.1]} 60... Kd7
{[%clk 0:00:27.3]} 0-1

[Event "*** Titled Tuesday Blitz"]
[Site "Chess.com"]
[Date "2018.12.04"]
[Round "7"]
[White "Keaton87"]
[Black "Alexander_Donchenko"]
[Result "1/2-1/2"]
[WhiteElo "2549"]
[BlackElo "2685"]
[TimeControl "180+2"]
[EndTime "14:39:33 PST"]
[Termination "Game drawn - insufficient material"]

1. Nf3 {[%clk 0:03:01.9]} 1... Nf6 {[%clk 0:03:00.9]} 2. c4 {[%clk 0:03:03]}
2... e6 {[%clk 0:03:01.7]} 3. g3 {[%clk 0:03:03.6]} 3... b6 {[%clk 0:03:02.2]}
4. Bg2 {[%clk 0:03:02.9]} 4... Bb7 {[%clk 0:03:03.5]} 5. O-O {[%clk 0:03:04.5]}
5... g6 {[%clk 0:03:05]} 6. Nc3 {[%clk 0:03:02.5]} 6... Bg7 {[%clk 0:03:06.2]}
7. d4 {[%clk 0:03:03.7]} 7... Ne4 {[%clk 0:03:06.3]} 8. Nxe4 {[%clk 0:03:02.4]}
8... Bxe4 {[%clk 0:03:08.2]} 9. Ne1 {[%clk 0:03:01.6]} 9... Bxg2 {[%clk
0:03:07.2]} 10. Nxg2 {[%clk 0:03:03.5]} 10... d5 {[%clk 0:03:06.5]} 11. cxd5
{[%clk 0:02:56.7]} 11... Qxd5 {[%clk 0:03:06.1]} 12. Be3 {[%clk 0:02:57.8]}
12... O-O {[%clk 0:03:00]} 13. Rc1 {[%clk 0:02:55.9]} 13... Qxa2 {[%clk
0:02:42.7]} 14. Rxc7 {[%clk 0:02:56.6]} 14... Qxb2 {[%clk 0:02:43.2]} 15. Qd3
{[%clk 0:02:33.7]} 15... Qa2 {[%clk 0:02:35.5]} 16. Nf4 {[%clk 0:02:31.9]} 16...
Na6 {[%clk 0:02:23.1]} 17. Rb7 {[%clk 0:02:18.6]} 17... Nb4 {[%clk 0:01:56.4]}
18. Qb1 {[%clk 0:01:45.6]} 18... Qxb1 {[%clk 0:01:37.1]} 19. Rxb1 {[%clk
0:01:47.5]} 19... Nc2 {[%clk 0:01:38.6]} 20. Rc1 {[%clk 0:00:50.4]} 20... Nxd4
{[%clk 0:01:36.2]} 21. Rcc7 {[%clk 0:00:51.1]} 21... Nb5 {[%clk 0:01:26]} 22.
Nxe6 {[%clk 0:00:34.3]} 22... Nxc7 {[%clk 0:01:23]} 23. Nxf8 {[%clk 0:00:35.4]}
23... Nd5 {[%clk 0:01:12.3]} 24. Nd7 {[%clk 0:00:27.3]} 24... Nxe3 {[%clk
0:01:12.1]} 25. fxe3 {[%clk 0:00:29.2]} 25... h5 {[%clk 0:01:05.2]} 26. Kf2
{[%clk 0:00:25.6]} 26... Bc3 {[%clk 0:00:54]} 27. e4 {[%clk 0:00:23.8]} 27... a5
{[%clk 0:00:35.3]} 28. Nxb6 {[%clk 0:00:24]} 28... Bd4+ {[%clk 0:00:35.9]} 29.
Kf3 {[%clk 0:00:23]} 29... Bxb6 {[%clk 0:00:37.1]} 30. Rxb6 {[%clk 0:00:24.8]}
30... a4 {[%clk 0:00:38.7]} 31. Rb2 {[%clk 0:00:25.3]} 31... Kf8 {[%clk
0:00:36.5]} 32. Ke3 {[%clk 0:00:24.5]} 32... a3 {[%clk 0:00:36.5]} 33. Ra2
{[%clk 0:00:25]} 33... Ke7 {[%clk 0:00:37.6]} 34. Kd2 {[%clk 0:00:21.6]} 34...
Kd6 {[%clk 0:00:37.8]} 35. Kc1 {[%clk 0:00:22.9]} 35... Ke5 {[%clk 0:00:38.2]}
36. Kb1 {[%clk 0:00:23.3]} 36... Kxe4 {[%clk 0:00:37.2]} 37. Rc2 {[%clk
0:00:24.9]} 37... Ra7 {[%clk 0:00:21.8]} 38. Rc3 {[%clk 0:00:25]} 38... a2+
{[%clk 0:00:21.1]} 39. Ka1 {[%clk 0:00:25.7]} 39... Kf5 {[%clk 0:00:22]} 40. h3
{[%clk 0:00:24.5]} 40... Ke4 {[%clk 0:00:23]} 41. Rf3 {[%clk 0:00:23.2]} 41...
f5 {[%clk 0:00:21]} 42. h4 {[%clk 0:00:21.5]} 42... Rd7 {[%clk 0:00:17.4]} 43.
Ra3 {[%clk 0:00:15.4]} 43... Rd6 {[%clk 0:00:11]} 44. Kxa2 {[%clk 0:00:16.1]}
44... f4 {[%clk 0:00:12.3]} 45. gxf4 {[%clk 0:00:16.2]} 45... Kxf4 {[%clk
0:00:13.4]} 46. Kb1 {[%clk 0:00:10.2]} 46... Rc6 {[%clk 0:00:12.2]} 47. Ra4+
{[%clk 0:00:06.6]} 47... Kg3 {[%clk 0:00:12.1]} 48. Re4 {[%clk 0:00:05.7]} 48...
Rc5 {[%clk 0:00:11.2]} 49. Kb2 {[%clk 0:00:06.4]} 49... g5 {[%clk 0:00:09.3]}
50. hxg5 {[%clk 0:00:06.8]} 50... Rxg5 {[%clk 0:00:11]} 51. Re3+ {[%clk
0:00:04.1]} 51... Kf2 {[%clk 0:00:12]} 52. Rh3 {[%clk 0:00:04]} 52... Kxe2
{[%clk 0:00:08.4]} 53. Kc3 {[%clk 0:00:04.4]} 53... Kf2 {[%clk 0:00:08.1]} 54.
Kd4 {[%clk 0:00:03.2]} 54... Rg4+ {[%clk 0:00:08.4]} 55. Ke5 {[%clk 0:00:02.6]}
55... h4 {[%clk 0:00:09.6]} 56. Kf5 {[%clk 0:00:03.3]} 56... Ra4 {[%clk
0:00:05.5]} 57. Kg5 {[%clk 0:00:04.7]} 57... Kg2 {[%clk 0:00:06.6]} 58. Rxh4
{[%clk 0:00:06.1]} 58... Rxh4 {[%clk 0:00:06.8]} 59. Kxh4 {[%clk 0:00:08]}
1/2-1/2

[Event "*** Titled Tuesday Blitz"]
[Site "Chess.com"]
[Date "2018.12.04"]
[Round "7"]
[White "josmito10"]
[Black "LazyIM"]
[Result "1-0"]
[WhiteElo "2698"]
[BlackElo "2624"]
[TimeControl "180+2"]
[EndTime "14:39:42 PST"]
[Termination "josmito10 won by resignation"]

1. d4 {[%clk 0:03:01.9]} 1... Nf6 {[%clk 0:02:59.4]} 2. c4 {[%clk 0:03:03.1]}
2... e6 {[%clk 0:03:00.6]} 3. g3 {[%clk 0:03:04.3]} 3... c5 {[%clk 0:03:01.6]}
4. d5 {[%clk 0:03:05.4]} 4... exd5 {[%clk 0:03:02.5]} 5. cxd5 {[%clk 0:03:07.3]}
5... d6 {[%clk 0:03:04]} 6. Nc3 {[%clk 0:03:07.6]} 6... g6 {[%clk 0:03:05.4]} 7.
Bg2 {[%clk 0:03:08.4]} 7... Bg7 {[%clk 0:03:07]} 8. Nf3 {[%clk 0:03:10.1]} 8...
O-O {[%clk 0:03:08.7]} 9. O-O {[%clk 0:03:11.8]} 9... Re8 {[%clk 0:03:09.7]} 10.
Bf4 {[%clk 0:03:13]} 10... a6 {[%clk 0:03:10.3]} 11. a4 {[%clk 0:03:14.1]} 11...
Nh5 {[%clk 0:02:56]} 12. Bg5 {[%clk 0:03:14]} 12... Bf6 {[%clk 0:02:51.6]} 13.
Bh6 {[%clk 0:03:14.9]} 13... Bg7 {[%clk 0:02:51.5]} 14. Bg5 {[%clk 0:03:16.1]}
14... Qb6 {[%clk 0:02:50.3]} 15. Qd2 {[%clk 0:03:15]} 15... Nd7 {[%clk
0:02:49.2]} 16. a5 {[%clk 0:03:11]} 16... Qc7 {[%clk 0:02:49.4]} 17. e4 {[%clk
0:02:48.5]} 17... Rb8 {[%clk 0:02:49.1]} 18. Rfe1 {[%clk 0:02:43.6]} 18... b5
{[%clk 0:02:47.7]} 19. axb6 {[%clk 0:02:43.6]} 19... Nxb6 {[%clk 0:02:49.1]} 20.
Bf1 {[%clk 0:02:38.7]} 20... Bg4 {[%clk 0:02:17.3]} 21. Kg2 {[%clk 0:02:39.2]}
21... Qd7 {[%clk 0:02:06.9]} 22. Ng1 {[%clk 0:02:37]} 22... f6 {[%clk 0:02:06]}
23. Be3 {[%clk 0:02:34.3]} 23... f5 {[%clk 0:01:38.7]} 24. h3 {[%clk 0:01:59.8]}
24... f4 {[%clk 0:01:33.7]} 25. Bxf4 {[%clk 0:01:54.9]} 25... Nxf4+ {[%clk
0:01:32.4]} 26. Qxf4 {[%clk 0:01:56.8]} 26... Bh5 {[%clk 0:01:15]} 27. g4 {[%clk
0:01:35]} 27... Rf8 {[%clk 0:01:13.8]} 28. Qd2 {[%clk 0:01:18.4]} 28... Bxg4
{[%clk 0:01:08.1]} 29. hxg4 {[%clk 0:01:19.7]} 29... Qxg4+ {[%clk 0:01:09.2]}
30. Kh1 {[%clk 0:01:21.5]} 30... Qh4+ {[%clk 0:00:50.9]} 31. Nh3 {[%clk
0:01:20.7]} 31... Nc4 {[%clk 0:00:50]} 32. Qg5 {[%clk 0:00:48.7]} 32... Qxg5
{[%clk 0:00:48.6]} 33. Nxg5 {[%clk 0:00:49.9]} 33... Nxb2 {[%clk 0:00:39.5]} 34.
Na4 {[%clk 0:00:42.7]} 34... Rxf2 {[%clk 0:00:39.1]} 35. Re2 {[%clk 0:00:33.3]}
35... Nxa4 {[%clk 0:00:31.1]} 36. Rxf2 {[%clk 0:00:28.8]} 36... Bxa1 {[%clk
0:00:32]} 37. Ra2 {[%clk 0:00:30.4]} 37... Rb1 {[%clk 0:00:33.2]} 38. Rxa4
{[%clk 0:00:15]} 38... Rxf1+ {[%clk 0:00:33.1]} 39. Kg2 {[%clk 0:00:16.7]} 39...
Rf8 {[%clk 0:00:28]} 40. Rxa1 {[%clk 0:00:17]} 40... h6 {[%clk 0:00:23.6]} 41.
Ne6 {[%clk 0:00:18.2]} 41... Rb8 {[%clk 0:00:23.7]} 42. Rxa6 {[%clk 0:00:18.6]}
42... Rb4 {[%clk 0:00:22.8]} 43. Rxd6 {[%clk 0:00:18.2]} 43... Rxe4 {[%clk
0:00:22.6]} 44. Nxc5 {[%clk 0:00:19]} 44... Rd4 {[%clk 0:00:23.4]} 45. Rxg6+
{[%clk 0:00:16.1]} 45... Kf7 {[%clk 0:00:24.9]} 46. Rd6 {[%clk 0:00:17.4]} 46...
h5 {[%clk 0:00:24.1]} 47. Kf3 {[%clk 0:00:15.9]} 47... h4 {[%clk 0:00:25]} 48.
Ke3 {[%clk 0:00:14.8]} 48... Rd1 {[%clk 0:00:26]} 49. Nd3 {[%clk 0:00:13.4]}
49... Rg1 {[%clk 0:00:22.1]} 50. Rh6 {[%clk 0:00:13.1]} 50... Rg5 {[%clk
0:00:23.3]} 51. Ke4 {[%clk 0:00:11]} 51... Rg4+ {[%clk 0:00:22]} 52. Nf4 {[%clk
0:00:10.3]} 52... Kg7 {[%clk 0:00:23.5]} 53. Rh5 {[%clk 0:00:11.9]} 53... Kf6
{[%clk 0:00:23.8]} 54. Rf5+ {[%clk 0:00:07.6]} 54... Ke7 {[%clk 0:00:23]} 55.
Ke5 {[%clk 0:00:07.3]} 55... Rg3 {[%clk 0:00:21.5]} 56. Rh5 {[%clk 0:00:06.8]}
56... Re3+ {[%clk 0:00:21.6]} 57. Kf5 {[%clk 0:00:08]} 57... Kd6 {[%clk
0:00:23.2]} 58. Rh6+ {[%clk 0:00:09.4]} 58... Kc5 {[%clk 0:00:24.1]} 59. Rxh4
{[%clk 0:00:11.1]} 1-0